fUSD/lending_fUSD_20251123
["ID","MTS","AMOUNT","RATE_DAILY","PERIOD"]
[394696239,1763905857180,-700.0,0.00022548,2]
[394696240,1763905857191,-500.0,0.00022548,2]
[394696241,1763905857201,-606.92531351,0.00022674,2]
[394696242,1763905857211,-1000.0,0.00022723,2]
[394696243,1763905857221,-1048.86992162,0.00022723,2]
[394696244,1763905857231,-457.63452341,0.00022723,2]
[394696245,1763905857240,-301.44,0.00022932,2]
[394696246,1763905857250,-250.28,0.00022937,2]
[394696247,1763905857259,-1096.0,0.00023336,2]
[394696248,1763905857269,-500.0,0.00023644,2]
[394696249,1763905857279,-700.0,0.00023644,2]
[394696250,1763905857289,-170.12,0.00023776,2]
[394696251,1763905857298,-14915.296042,0.00023838,2]
[394696252,1763905857307,-153.06,0.00023934,2]
[394696253,1763905857317,-1000.0,0.00023991,2]
[394696254,1763905857327,-966.559,0.00024039,2]
[394696255,1763905857336,-576.0,0.00024039,2]
[394696256,1763905857345,-3212.353,0.00024039,2]
[394696257,1763905857355,-609.0,0.00024039,2]
[394696258,1763905857365,-1601.0,0.00024039,2]
[394696259,1763905857374,-822.0,0.00024039,2]
[394696260,1763905857383,-659.0,0.00024039,2]
[394696261,1763905857393,-1256.0,0.00024039,2]
[394696262,1763905857403,-2659.0,0.00024039,2]
[394696263,1763905857413,-6496.0,0.00024039,2]
[394696264,1763905857422,-561.0,0.00024039,2]
[394696265,1763905857432,-153.23453524,0.0002415,2]
[394696266,1763905857442,-500.0,0.00024245,2]
[394696267,1763905857453,-500.0,0.00024245,2]
[394696268,1763905857466,-500.0,0.00024245,2]
[394696269,1763905857475,-500.0,0.00024245,2]
[394696270,1763905857485,-918.57454841,0.00024305,2]
[394696271,1763905857494,-1441.0,0.000244,2]
[394696272,1763905857506,-548.16278344,0.00024402,2]
[394696273,1763905857516,-1096.0,0.00024565,2]
[394696274,1763905857525,-1000.0,0.00024658,2]
[394696275,1763905857536,-151.0,0.00024658,7]
[394696276,1763905857546,-151.0,0.00024658,7]
[394696277,1763905857556,-151.0,0.00024658,7]
[394696278,1763905857565,-151.0,0.00024658,7]
[394696279,1763905857575,-151.0,0.00024658,7]
[394696280,1763905857584,-160.483998,0.00024658,7]
[394696281,1763905857594,-5984.19,0.000247,7]
[394696282,1763905857604,-500.0,0.0002474,2]
[394696283,1763905857613,-700.0,0.0002474,2]
[394696284,1763905857622,-500.0,0.0002474,2]
[394696285,1763905857632,-514.90121309,0.00024793,2]
[394696286,1763905857642,-1000.0,0.00024793,2]
[394696287,1763905857651,-500.0,0.00024799,2]
[394696288,1763905857661,-500.0,0.00024799,2]
[394696289,1763905857671,-290867.861711,0.000248,2]
[394696290,1763905857681,-500.0,0.00024899,2]
[394696291,1763905857691,-500.0,0.00024899,2]
[394696292,1763905857701,-500.0,0.00024899,2]
[394696293,1763905857711,-1413.78957916,0.000249,2]
[394696294,1763905857722,-499.0,0.00025,7]
[394696295,1763905857731,-487.452036,0.00025341,2]
[394696296,1763905857742,-153.23453524,0.0002566,2]
[394696297,1763905857752,-167.51632815,0.000257,2]
[394696298,1763905857761,-167.51632815,0.000257,2]
[394696299,1763905857770,-1096.0,0.00025858,2]
[394696300,1763905857780,-606.92531351,0.00026042,2]
[394696301,1763905857790,-166.85,0.00026241,2]
[394696302,1763905857799,-14915.296042,0.00026332,2]
[394696303,1763905857808,-452.25,0.00026676,2]
[394696304,1763905857988,-166.85,0.00026782,2]
[394696305,1763905858010,-500.0,0.00026932,2]
[394696306,1763905858021,-700.0,0.00026932,2]
[394696307,1763905858030,-500.0,0.00026932,2]
[394696308,1763905858040,-1601.0,0.00027039,2]
[394696309,1763905858049,-822.0,0.00027039,2]
[394696310,1763905858059,-659.0,0.00027039,2]
[394696311,1763905858068,-1256.0,0.00027039,2]
[394696312,1763905858078,-302.995,0.00027039,2]
[394696313,1763905858088,-918.57454841,0.00027106,2]
[394696314,1763905858097,-500.0,0.00027123,7]
[394696315,1763905858107,-500.0,0.00027123,7]
[394696316,1763905858117,-500.0,0.00027123,7]
[394696317,1763905858127,-578.26533557,0.00027123,7]
[394696318,1763905858137,-500.0,0.00027127,120]
[394696319,1763905858146,-153.23453524,0.00027169,2]
[394696320,1763905858156,-1096.0,0.00027219,2]
[394696321,1763905858166,-2000.0,0.0002726,2]
[394696322,1763905858176,-2000.0,0.0002726,2]
[394696323,1763905858186,-5984.19,0.000273,7]
[394696324,1763905858196,-166.85,0.00027322,2]
[394696325,1763905858205,-150.0,0.00027369,2]
[394696326,1763905858215,-420.64598828,0.00027371,2]
[394696327,1763905858225,-12860.83283191,0.00027397,7]
[394696328,1763905858234,-500.0,0.00027397,5]
[394696329,1763905858244,-151.0,0.00027397,7]
[394696330,1763905858253,-151.0,0.00027397,7]
[394696331,1763905858262,-151.0,0.00027397,7]
[394696332,1763905858272,-286.502955,0.00027397,7]
[394696333,1763905858281,-150.0,0.00027397,5]
[394696334,1763905858291,-162.73,0.000274,7]
[394696335,1763905858301,-159.63,0.000274,7]
[394696336,1763905858310,-2656.2,0.000274,2]
[394696337,1763905858320,-500.0,0.000274,120]
[394696338,1763905858329,-153.06,0.00027497,2]
[394696339,1763905858339,-7555.17,0.00027671,2]
[394696340,1763905858348,-414.63,0.00027863,2]
[394696341,1763905858358,-153.05,0.00027866,2]
[394696342,1763905858367,-250.0,0.00027945,5]
[394696343,1763905858376,-230.1586873,0.00027999,2]
[394696344,1763905858386,-17218.12181456,0.00028,2]
[394696345,1763905858396,-11542.9991732,0.00028,2]
[394696346,1763905858405,-8537.45197458,0.00028,2]
[394696347,1763905858415,-16303.39,0.00028,3]
[394696348,1763905858425,-153.0,0.00028119,2]
[394696349,1763905858434,-153.0,0.00028124,2]
[394696350,1763905858443,-185.10632839,0.00028419,2]
[394696351,1763905858454,-1206.04128398,0.00028419,2]
[394696352,1763905858469,-350.0,0.00028493,5]
[394696353,1763905858480,-548.16278344,0.00028527,2]
[394696354,1763905858489,-1096.0,0.00028579,5]
[394696355,1763905858499,-153.23453524,0.00028679,2]
[394696356,1763905858509,-300.48,0.00028731,2]
[394696357,1763905858519,-150.0,0.00028731,2]
[394696358,1763905858528,-150.0,0.00028731,2]
[394696359,1763905858539,-150.0,0.00028731,2]
[394696360,1763905858549,-150.0,0.00028731,2]
[394696361,1763905858559,-150.0,0.00028731,2]
[394696362,1763905858569,-150.0,0.00028731,2]
[394696363,1763905858579,-150.0,0.00028731,2]
[394696364,1763905858588,-150.0,0.00028731,2]
[394696365,1763905858598,-157.81,0.00028767,30]
[394696366,1763905858608,-14915.296042,0.00028827,2]
[394696367,1763905858618,-2656.2,0.000289,2]
[394696368,1763905858627,-4000.0,0.00029,2]
[394696369,1763905858638,-256.34239981,0.00029041,5]
[394696370,1763905858649,-162.73,0.000291,7]
[394696371,1763905858659,-159.63,0.000291,7]
[394696372,1763905858669,-500.0,0.00029124,7]
[394696373,1763905858679,-700.0,0.00029124,7]
[394696374,1763905858688,-500.0,0.00029124,7]
[394696375,1763905858697,-500.0,0.000294,120]
[394696376,1763905858707,-606.92531351,0.00029411,2]
[394696377,1763905858717,-5984.19,0.000297,7]
[394696378,1763905858726,-918.57454841,0.00029908,2]
[394696379,1763905858736,-500.0,0.00029999,7]
[394696380,1763905858745,-155120.0,0.0003,43]
[394696381,1763905858756,-1096.0,0.00030008,5]
[394696382,1763905858765,-153.23453524,0.00030188,2]
[394696383,1763905858775,-259.64,0.000304,14]
[394696384,1763905858785,-500.0,0.00030768,7]
[394696385,1763905858795,-700.0,0.00030768,7]
[394696386,1763905858806,-500.0,0.00030768,7]
[394696387,1763905858815,-159.63,0.00031,7]
[394696388,1763905858825,-2656.2,0.00031,2]
[394696389,1763905858835,-14915.296042,0.00031321,2]
[394696390,1763905858845,-257.497644,0.000314,120]
[394696391,1763905858855,-191.16,0.00031507,120]
[394696392,1763905858864,-1096.0,0.00031509,5]
[394696393,1763905858874,-153.23453524,0.00031698,2]
[394696394,1763905858884,-797.75771126,0.00032,3]
[394696395,1763905858893,-500.0,0.00032412,7]
[394696396,1763905858909,-700.0,0.00032412,7]
[394696397,1763905858919,-500.0,0.00032412,7]
[394696398,1763905858929,-548.16278344,0.00032651,2]
[394696399,1763905858939,-606.92531351,0.00032779,2]
[394696400,1763905858950,-159.63,0.000329,14]
[394696401,1763905858960,-2656.2,0.000329,2]
[394696402,1763905858969,-160.0,0.00033,120]
[394696403,1763905858979,-1003.0,0.00033,6]
[394696404,1763905858989,-1096.0,0.00033084,5]
[394696405,1763905859000,-452.25,0.00033165,2]
[394696406,1763905859009,-153.23453524,0.00033207,2]
[394696407,1763905859018,-339.28,0.00033616,2]
[394696408,1763905859029,-834.5,0.00033616,2]
[394696409,1763905859039,-339.28,0.00033616,2]
[394696410,1763905859050,-14915.296042,0.00033815,2]
[394696411,1763905859060,-200.0,0.00033863,5]
[394696412,1763905859070,-1002.0,0.00034,6]
[394696413,1763905859079,-500.0,0.00034056,7]
[394696414,1763905859090,-700.0,0.00034056,7]
[394696415,1763905859100,-594.92085173,0.00034056,7]
[394696416,1763905859109,-500.0,0.00034521,2]
[394696417,1763905859119,-153.23453524,0.00034716,2]
[394696418,1763905859128,-1096.0,0.00034738,5]
[394696419,1763905859138,-240.26922994,0.00035,10]
[394696420,1763905859148,-7259.81220287,0.00035,30]
[394696421,1763905859158,-303.01,0.0003526,2]
[394696422,1763905859168,-150.0,0.0003526,2]
[394696423,1763905859178,-1100.7,0.0003526,2]
[394696424,1763905859189,-229.38,0.0003526,2]
[394696425,1763905859200,-150.0,0.0003526,2]
[394696426,1763905859210,-150.0,0.0003526,2]
[394696427,1763905859219,-150.0,0.0003526,2]
[394696428,1763905859229,-500.0,0.00035616,2]
[394696429,1763905859239,-500.0,0.000357,7]
[394696430,1763905859249,-700.0,0.000357,7]
[394696431,1763905859259,-500.0,0.00035753,2]
[394696432,1763905859271,-500.0,0.0003589,2]
[394696433,1763905859280,-200.566,0.00035945,7]
[394696434,1763905859290,-1038.56,0.00036,2]
[394696435,1763905859301,-360.00438474,0.00036,60]
[394696436,1763905859310,-500.0,0.00036027,2]
[394696437,1763905859319,-606.92531351,0.00036147,2]
[394696438,1763905859329,-500.0,0.00036164,2]
[394696439,1763905859338,-153.23453526,0.00036226,2]
[394696440,1763905859347,-500.0,0.00036301,2]
[394696441,1763905859357,-500.0,0.00036309,7]
[394696442,1763905859367,-14915.296042,0.0003631,2]
[394696443,1763905859377,-500.0,0.00036438,2]
[394696444,1763905859387,-1096.0,0.00036475,5]
[394696445,1763905859398,-500.0,0.00036575,2]
[394696446,1763905859408,-167.27049181,0.00036712,2]
[394696447,1763905859418,-1038.56,0.0003672,2]
[394696448,1763905859428,-548.16278344,0.00036776,2]
[394696449,1763905859437,-267.46074303,0.0003686,30]
[394696450,1763905859448,-311.3479,0.00036888,7]
[394696451,1763905859461,-160.0,0.00037,14]
[394696452,1763905859471,-5987.39,0.000371,14]
[394696453,1763905859481,-5984.19,0.000371,14]
[394696454,1763905859491,-1579.0,0.00037307,20]
[394696455,1763905859502,-500.0,0.00037344,7]
[394696456,1763905859512,-700.0,0.00037344,7]
[394696457,1763905859522,-1038.56,0.0003744,2]
[394696458,1763905859533,-257.91778498,0.00037472,30]
[394696459,1763905859546,-5005.98399901,0.000375,2]
[394696460,1763905859556,-701.05,0.00037671,2]
[394696461,1763905859565,-701.05,0.00037671,2]
[394696462,1763905859575,-1579.0,0.00037692,20]
[394696463,1763905859584,-500.0,0.00037808,120]
[394696464,1763905859593,-150.0,0.00037808,2]
[394696465,1763905859603,-150.0,0.00037808,2]
[394696466,1763905859612,-150.0,0.00037808,2]
[394696467,1763905859622,-200.0,0.000379,120]
[394696468,1763905859631,-150.0,0.00037945,2]
[394696469,1763905859641,-300.0,0.00037945,2]
[394696470,1763905859651,-150.0,0.00037945,2]
[394696471,1763905859661,-150.0,0.00037945,2]
[394696472,1763905859671,-150.0,0.00037945,2]
[394696473,1763905859681,-4010.0,0.00038,5]
[394696474,1763905859691,-2000.0,0.00038,38]
[394696475,1763905859701,-2000.0,0.00038,2]
[394696476,1763905859711,-439.026281,0.00038,2]
[394696477,1763905859721,-1048.12062,0.00038,120]
[394696478,1763905859730,-1579.0,0.00038077,20]
[394696479,1763905859740,-500.0,0.00038082,120]
[394696480,1763905859750,-150.0,0.00038082,2]
[394696481,1763905859760,-2001.5631,0.00038154,3]
[394696482,1763905859770,-2000.0,0.00038154,3]
[394696483,1763905859779,-1038.56,0.0003816,2]
[394696484,1763905859789,-1096.0,0.00038299,5]
[394696485,1763905859799,-1518.73212904,0.00038346,7]
[394696486,1763905859809,-500.0,0.00038355,7]
[394696487,1763905859819,-500.0,0.00038355,7]
[394696488,1763905859828,-500.0,0.00038355,7]
[394696489,1763905859837,-501.90034474,0.00038356,8]
[394696490,1763905859846,-500.0,0.00038356,8]
[394696491,1763905859855,-502.38148011,0.00038356,8]
[394696492,1763905859865,-501.77284078,0.00038356,8]
[394696493,1763905859874,-505.89157799,0.00038356,8]
[394696494,1763905859884,-500.0,0.00038356,8]
[394696495,1763905859893,-500.0,0.00038356,8]
[394696496,1763905859907,-500.0,0.00038356,8]
[394696497,1763905859917,-506.60953683,0.00038356,8]
[394696498,1763905859927,-500.0,0.00038356,8]
[394696499,1763905859937,-500.0,0.00038356,8]
[394696500,1763905859947,-500.0,0.00038356,8]
[394696501,1763905859956,-500.0,0.00038356,8]
[394696502,1763905859966,-500.0,0.00038356,8]
[394696503,1763905859976,-501.87587098,0.00038356,8]
[394696504,1763905859987,-500.0,0.00038356,8]
[394696505,1763905859997,-500.0,0.00038356,8]
[394696506,1763905860007,-501.83520748,0.00038356,8]
[394696507,1763905860017,-500.0,0.00038356,8]
[394696508,1763905860028,-501.65549527,0.00038356,8]
[394696509,1763905860037,-500.0,0.00038356,8]
[394696510,1763905860048,-502.11118916,0.00038356,8]
[394696511,1763905860058,-500.0,0.00038356,8]
[394696512,1763905860068,-500.95538017,0.00038356,8]
[394696513,1763905860078,-500.0,0.00038356,8]
[394696514,1763905860088,-500.81020914,0.00038356,8]
[394696515,1763905860098,-504.76333007,0.00038356,8]
[394696516,1763905860108,-500.0,0.00038356,8]
[394696517,1763905860118,-500.0,0.00038356,8]
[394696518,1763905860128,-500.0,0.00038356,8]
[394696519,1763905860138,-500.0,0.00038356,8]
[394696520,1763905860148,-501.20036803,0.00038356,8]
[394696521,1763905860158,-500.0,0.00038356,8]
[394696522,1763905860169,-500.0,0.00038356,8]
[394696523,1763905860180,-500.0,0.00038356,8]
[394696524,1763905860190,-500.0,0.00038356,8]
[394696525,1763905860203,-500.0,0.00038356,8]
[394696526,1763905860214,-500.0,0.00038356,8]
[394696527,1763905860224,-500.0,0.00038356,8]
[394696528,1763905860234,-500.0,0.00038356,8]
[394696529,1763905860244,-500.0,0.00038356,8]
[394696530,1763905860254,-501.44984762,0.00038356,8]
[394696531,1763905860264,-500.0,0.00038356,8]
[394696532,1763905860274,-500.0,0.00038356,8]
[394696533,1763905860284,-500.0,0.00038356,8]
[394696534,1763905860294,-500.0,0.00038356,8]
[394696535,1763905860304,-500.0,0.00038356,8]
[394696536,1763905860314,-500.0,0.00038356,8]
[394696537,1763905860324,-500.0,0.00038356,2]
[394696538,1763905860334,-158.61007063,0.00038356,2]
[394696539,1763905860344,-500.0,0.00038356,8]
[394696540,1763905860355,-501.48218713,0.00038356,8]
[394696541,1763905860365,-500.0,0.00038356,8]
[394696542,1763905860375,-500.0,0.00038356,8]
[394696543,1763905860385,-500.0,0.00038356,8]
[394696544,1763905860394,-500.0,0.00038356,8]
[394696545,1763905860404,-500.0,0.00038356,8]
[394696546,1763905860414,-500.0,0.00038356,8]
[394696547,1763905860424,-808.78,0.00038356,8]
[394696548,1763905860434,-500.0,0.00038356,8]
[394696549,1763905860450,-501.83965983,0.00038356,8]
[394696550,1763905860571,-500.0,0.00038356,8]
[394696551,1763905860581,-697.92,0.00038356,8]
[394696552,1763905860590,-500.0,0.00038356,8]
[394696553,1763905860600,-500.0,0.00038356,8]
[394696554,1763905860610,-500.0,0.00038356,8]
[394696555,1763905860619,-550.54,0.00038356,8]
[394696556,1763905860629,-675.89,0.00038356,8]
[394696557,1763905860639,-500.0,0.00038356,8]
[394696558,1763905860649,-641.23,0.00038356,8]
[394696559,1763905860658,-500.0,0.00038356,8]
[394696560,1763905860667,-519.90066661,0.00038356,8]
[394696561,1763905860677,-500.0,0.00038356,8]
[394696562,1763905860687,-500.0,0.00038356,8]
[394696563,1763905860696,-645.33021219,0.00038356,8]
[394696564,1763905860707,-500.0,0.00038356,8]
[394696565,1763905860717,-500.0,0.00038356,8]
[394696566,1763905860726,-500.0,0.00038356,8]
[394696567,1763905860736,-500.0,0.00038356,8]
[394696568,1763905860745,-502.92456939,0.00038356,8]
[394696569,1763905860755,-500.0,0.00038356,8]
[394696570,1763905860764,-501.76439635,0.00038356,8]
[394696571,1763905860774,-500.0,0.00038356,8]
[394696572,1763905860783,-500.0,0.00038356,8]
[394696573,1763905860793,-500.0,0.00038356,8]
[394696574,1763905860802,-500.0,0.00038356,8]
[394696575,1763905860815,-503.34739465,0.00038356,8]
[394696576,1763905860825,-666.81,0.00038356,8]
[394696577,1763905860834,-500.0,0.00038356,8]
[394696578,1763905860843,-500.0,0.00038356,8]
[394696579,1763905860853,-500.0,0.00038356,8]
[394696580,1763905860862,-500.0,0.00038356,8]
[394696581,1763905860871,-500.0,0.00038356,8]
[394696582,1763905860881,-479.68047287,0.00038356,8]
[394696583,1763905860890,-500.0,0.00038356,8]
[394696584,1763905860900,-500.0,0.00038356,8]
[394696585,1763905860910,-500.0,0.00038356,8]
[394696586,1763905860919,-500.0,0.00038356,8]
[394696587,1763905860928,-502.67202862,0.00038356,8]
[394696588,1763905860937,-629.21,0.00038356,8]
[394696589,1763905860946,-500.0,0.00038356,8]
[394696590,1763905860956,-500.0,0.00038356,8]
[394696591,1763905860965,-500.0,0.00038356,8]
[394696592,1763905860975,-500.0,0.00038356,8]
[394696593,1763905860984,-500.0,0.00038356,8]
[394696594,1763905860993,-650.1,0.00038356,8]
[394696595,1763905861007,-808.03,0.00038356,8]
[394696596,1763905861016,-500.0,0.00038356,8]
[394696597,1763905861026,-644.86,0.00038356,8]
[394696598,1763905861036,-500.0,0.00038356,8]
[394696599,1763905861046,-500.0,0.00038356,8]
[394696600,1763905861056,-500.0,0.00038356,8]
[394696601,1763905861066,-443.97670172,0.00038356,8]
[394696602,1763905861076,-500.0,0.00038356,8]
[394696603,1763905861085,-500.0,0.00038356,8]
[394696604,1763905861095,-500.0,0.00038356,8]
[394696605,1763905861104,-500.0,0.00038356,8]
[394696606,1763905861113,-500.0,0.00038356,8]
[394696607,1763905861123,-500.0,0.00038356,8]
[394696608,1763905861133,-500.0,0.00038356,8]
[394696609,1763905861142,-500.0,0.00038356,8]
[394696610,1763905861152,-500.0,0.00038356,8]
[394696611,1763905861162,-500.0,0.00038356,8]
[394696612,1763905861171,-500.0,0.00038356,8]
[394696613,1763905861181,-500.0,0.00038356,8]
[394696614,1763905861190,-500.0,0.00038356,8]
[394696615,1763905861200,-500.0,0.00038356,8]
[394696616,1763905861210,-500.0,0.00038356,8]
[394696617,1763905861219,-500.0,0.00038356,8]
[394696618,1763905861228,-505.10659694,0.00038356,8]
[394696619,1763905861238,-500.0,0.00038356,8]
[394696620,1763905861247,-500.0,0.00038356,8]
[394696621,1763905861256,-500.0,0.00038356,8]
[394696622,1763905861266,-500.0,0.00038356,8]
[394696623,1763905861276,-500.0,0.00038356,8]
[394696624,1763905861286,-476.15661587,0.00038356,8]
[394696625,1763905861295,-640.20130346,0.00038356,8]
[394696626,1763905861305,-500.0,0.00038356,8]
[394696627,1763905861314,-501.82941216,0.00038356,8]
[394696628,1763905861324,-530.41,0.00038356,8]
[394696629,1763905861334,-500.0,0.00038356,8]
[394696630,1763905861344,-500.0,0.00038356,8]
[394696631,1763905861354,-500.0,0.00038356,8]
[394696632,1763905861369,-500.0,0.00038356,8]
[394696633,1763905861378,-500.0,0.00038356,8]
[394696634,1763905861388,-538.08,0.00038356,8]
[394696635,1763905861397,-691.59,0.00038356,8]
[394696636,1763905861408,-618.91,0.00038356,8]
[394696637,1763905861418,-500.0,0.00038356,8]
[394696638,1763905861427,-500.0,0.00038356,8]
[394696639,1763905861438,-500.0,0.00038356,8]
[394696640,1763905861447,-500.0,0.00038356,8]
[394696641,1763905861460,-623.43,0.00038356,8]
[394696642,1763905861471,-500.0,0.00038356,8]
[394696643,1763905861481,-500.0,0.00038356,8]
[394696644,1763905861491,-659.79,0.00038356,8]
[394696645,1763905861502,-500.0,0.00038356,8]
[394696646,1763905861512,-500.0,0.00038356,8]
[394696647,1763905861522,-500.0,0.00038356,8]
[394696648,1763905861532,-500.0,0.00038356,8]
[394696649,1763905861543,-500.0,0.00038356,8]
[394696650,1763905861552,-500.0,0.00038356,8]
[394696651,1763905861562,-376.84398732,0.00038356,8]
[394696652,1763905861572,-500.0,0.00038356,8]
[394696653,1763905861581,-500.0,0.00038356,8]
[394696654,1763905861592,-500.0,0.00038356,8]
[394696655,1763905861601,-500.0,0.00038356,8]
[394696656,1763905861611,-500.0,0.00038356,8]
[394696657,1763905861621,-500.0,0.00038356,8]
[394696658,1763905861632,-500.0,0.00038356,8]
[394696659,1763905861641,-500.0,0.00038356,8]
[394696660,1763905861651,-500.0,0.00038356,8]
[394696661,1763905861661,-963.13,0.00038356,8]
[394696662,1763905861673,-898.11,0.00038356,8]
[394696663,1763905861683,-1003.96,0.00038356,8]
[394696664,1763905861693,-500.0,0.00038356,8]
[394696665,1763905861704,-500.0,0.00038356,8]
[394696666,1763905861714,-500.0,0.00038356,8]
[394696667,1763905861724,-500.0,0.00038356,8]
[394696668,1763905861736,-500.0,0.00038356,8]
[394696669,1763905861746,-500.0,0.00038356,7]
[394696670,1763905861756,-501.62715493,0.00038356,8]
[394696671,1763905861767,-500.0,0.00038356,8]
[394696672,1763905861776,-500.0,0.00038356,8]
[394696673,1763905861787,-500.0,0.00038356,8]
[394696674,1763905861797,-894.88,0.00038356,8]
[394696675,1763905861808,-500.0,0.00038356,8]
[394696676,1763905861818,-500.0,0.00038356,8]
[394696677,1763905861828,-540.21,0.00038356,8]
[394696678,1763905861838,-500.0,0.00038356,8]
[394696679,1763905861848,-500.0,0.00038356,8]
[394696680,1763905861859,-500.0,0.00038356,8]
[394696681,1763905861870,-874.81,0.00038356,8]
[394696682,1763905861880,-518.97,0.00038356,8]
[394696683,1763905861891,-500.0,0.00038356,8]
[394696684,1763905861901,-500.0,0.00038356,8]
[394696685,1763905861911,-500.0,0.00038356,8]
[394696686,1763905861921,-501.73689134,0.00038356,8]
[394696687,1763905861931,-500.0,0.00038356,8]
[394696688,1763905861940,-500.0,0.00038356,8]
[394696689,1763905861951,-500.0,0.00038356,8]
[394696690,1763905861962,-503.32122862,0.00038356,8]
[394696691,1763905861973,-500.0,0.00038356,8]
[394696692,1763905861984,-500.0,0.00038356,8]
[394696693,1763905861995,-500.0,0.00038356,8]
[394696694,1763905862006,-1060.07,0.00038356,8]
[394696695,1763905862017,-500.0,0.00038356,8]
[394696696,1763905862027,-500.0,0.00038356,8]
[394696697,1763905862038,-500.0,0.00038356,8]
[394696698,1763905862048,-500.0,0.00038356,8]
[394696699,1763905862058,-500.0,0.00038356,8]
[394696700,1763905862068,-500.0,0.00038356,8]
[394696701,1763905862078,-500.0,0.00038356,8]
[394696702,1763905862088,-500.0,0.00038356,8]
[394696703,1763905862098,-500.0,0.00038356,7]
[394696704,1763905862108,-500.0,0.00038356,8]
[394696705,1763905862130,-500.0,0.00038356,8]
[394696706,1763905862139,-500.0,0.00038356,8]
[394696707,1763905862148,-500.0,0.00038356,8]
[394696708,1763905862156,-500.0,0.00038356,8]
[394696709,1763905862166,-591.64,0.00038356,8]
[394696710,1763905862177,-500.0,0.00038356,8]
[394696711,1763905862186,-490.42706892,0.00038356,8]
[394696712,1763905862197,-1167.82,0.00038356,8]
[394696713,1763905862211,-500.0,0.00038356,8]
[394696714,1763905862221,-500.0,0.00038356,8]
[394696715,1763905862232,-500.0,0.00038356,8]
[394696716,1763905862242,-500.0,0.00038356,8]
[394696717,1763905862253,-500.0,0.00038356,8]
[394696718,1763905862263,-500.0,0.00038356,8]
[394696719,1763905862274,-882.66,0.00038356,8]
[394696720,1763905862285,-500.0,0.00038356,8]
[394696721,1763905862296,-500.0,0.00038356,8]
[394696722,1763905862306,-739.81,0.00038356,8]
[394696723,1763905862316,-755.0,0.00038356,8]
[394696724,1763905862327,-500.0,0.00038356,8]
[394696725,1763905862337,-651.54,0.00038356,8]
[394696726,1763905862348,-500.0,0.00038356,8]
[394696727,1763905862359,-500.0,0.00038356,8]
[394696728,1763905862370,-500.0,0.00038356,8]
[394696729,1763905862380,-500.0,0.00038356,8]
[394696730,1763905862390,-500.0,0.00038356,8]
[394696731,1763905862401,-500.0,0.00038356,8]
[394696732,1763905862412,-500.0,0.00038356,8]
[394696733,1763905862423,-500.0,0.00038356,8]
[394696734,1763905862434,-500.0,0.00038356,8]
[394696735,1763905862444,-500.0,0.00038356,8]
[394696736,1763905862456,-500.0,0.00038356,8]
[394696737,1763905862470,-500.0,0.00038356,8]
[394696738,1763905862480,-500.0,0.00038356,8]